Cogmind - Beta 15 @@@ ROGUE MODE // 2025.05.09 @ 03:58:57 Player: Trione Result: Destroyed by WT-31J(g) with Salvaging Laser Performance ------------- Evolutions (1) 500 Regions Visited (6) 1200 Robots Destroyed (106) 530 Value Destroyed (2078) 2078 Prototype IDs (9) 180 Alien Tech Used (0) 0 Bonus (1774) 1774 TOTAL SCORE: 6262 Bonus ------- High Alert Combat Kills 81 Follower Combat Kills 893 Registered with UFD 300 Met Optimus in HQ 500 Cogmind --------- Core Integrity 0/400 Matter 300/300 Energy 92/100 System Corruption 3% Temperature Hot (225) Movement Walking (190) Ox1 Location -9/Scraptown Parts ------- > --- POWER (1) -------- (None) > --- PROPULSION (3) --- Aluminum Leg > --- UTILITY (3) ------ Makeshift Medium Armor Plating > --- WEAPON (2) ------- Thermal Lance > --- INVENTORY (5) ---- Light Treads Overtuned Titanium Leg Overtuned Pulse Rifle Katana Botcube Peak State ------------ > --- POWER ------------ Improved Ion Engine > --- PROPULSION ------- Aluminum Leg Aluminum Leg Compact Wheel > --- UTILITY ---------- Huge Storage Unit IFF Parser Drone Bay > --- WEAPON ----------- Ion Cannon Ripteeth > --- INVENTORY -------- Improved Ion Engine Light Treads Light Treads Overtuned Titanium Leg Assembled Alloy Leg High-capacity Matter Pod Signal Interpreter Seismic Detector Medium Armor Plating Hardened Light Armor Plating Improved Medium Armor Plating Trap Extractor Overtuned Pulse Rifle Heavy Plasma Cannon Bolt Gun Minigun Minigun Battle Cannon Rocket Launcher Mini Grenade Launcher Plasma Cutter Katana Thermal Lance Botcube PL-3XN's Ring of Power [Rating: 31] Favorites ----------- Power Improved Ion Engine Engine Improved Ion Engine Propulsion Aluminum Leg Treads Light Treads Leg Aluminum Leg Wheel Compact Wheel Utility Large Storage Unit Device Drone Bay Storage Large Storage Unit Protection Medium Armor Plating Weapon Ion Cannon Energy Gun Beam Rifle Energy Cannon Ion Cannon Ballistic Gun Minigun Ballistic Cannon Light Cannon Launcher Mini Grenade Launcher Special Weapon Mining Laser Impact Weapon Hammer Slashing Weapon Katana Piercing Weapon Thermal Lance Build | -11 -10 -10 -9 -9 -9 -9 ------- Run | Yrd Mat Min Mat Sto Rec Scr Slots Evolved 2 | . . . 2 . . . Power . | . . . . . . . Propulsion 1 | . . . 1 . . . Utility 1 | . . . 1 . . . Weapon . | . . . . . . . Parts Attached 74 | 7 13 4 34 7 2 7 Power 6 | 1 1 . 2 1 . 1 Engine 6 | 1 1 . 2 1 . 1 Core . | . . . . . . . Reactor . | . . . . . . . Propulsion 24 | 2 6 2 11 3 . . Treads 7 | . 2 . 5 . . . Leg 6 | . . 1 2 3 . . Wheel 11 | 2 4 1 4 . . . Hover . | . . . . . . . Flight . | . . . . . . . Utility 18 | 2 3 . 7 2 . 4 Device 6 | 1 1 . 1 1 . 2 Storage 4 | 1 2 . . . . 1 Processor . | . . . . . . . Hackware . | . . . . . . . Protection 8 | . . . 6 1 . 1 Artifact . | . . . . . . . Weapon 26 | 2 3 2 14 1 2 2 Energy Gun 8 | 1 1 . 6 . . . Energy Cannon 3 | . . . 2 1 . . Ballistic Gun 6 | 1 1 2 1 . 1 . Ballistic Cannon 1 | . . . 1 . . . Launcher 2 | . . . 2 . . . Special Weapon 1 | . 1 . . . . . Impact Weapon 1 | . . . 1 . . . Slashing Weapon 3 | . . . 1 . 1 1 Piercing Weapon 1 | . . . . . . 1 Special Melee Weapon . | . . . . . . . Unidentified Prototypes 2 | . . . 2 . . . Parts Lost 13 | . 1 1 3 1 . 7 Power 3 | . 1 . 1 . . 1 Propulsion 5 | . . 1 1 1 . 2 Utility 3 | . . . 1 . . 2 Weapon 2 | . . . . . . 2 Highest Loss Streak 7 | . 1 1 2 1 . 7 To Critical Strikes . | . . . . . . . Average Backups 15 | 5 11 14 14 14 14 18 Power 1 | . . 1 1 1 1 1 Propulsion 3 | 3 4 3 2 3 3 3 Utility 5 | . 3 5 5 4 5 7 Weapon 5 | . 2 3 5 5 5 6 Tool/Special . | . . . . . . . Unused Backups 29 | . 2 . 11 . . 16 Power 3 | . . . 2 . . 1 Propulsion 5 | . . . 1 . . 4 Utility 8 | . 2 . 1 . . 5 Weapon 12 | . . . 7 . . 5 Tool/Special 1 | . . . . . . 1 Average Slot Usage (%) 99 | . 100 99 99 100 100 99 Engine 11 | . 14 14 10 11 11 11 Treads 1 | . . 1 10 . . . Leg 19 | . . . 1 33 33 22 Wheel 10 | . 27 25 21 . . 10 Device 14 | . 14 14 10 5 11 21 Storage 11 | . 14 14 11 11 11 11 Protection 6 | . . . 11 16 11 . Energy Gun 4 | . 17 14 14 . . . Energy Cannon 10 | . . . 3 21 13 11 Ballistic Gun 6 | . 7 5 1 . 6 10 Peak Build Rating 31 | 9 9 8 17 22 21 31 Average Rating 19 | 5 8 7 14 19 20 24 On Entrance 11 | . 9 8 8 15 21 21 Naked Turns . | . . . . . . . Heaviest Build 109 | 15 30 30 44 52 52 109 Greatest Support 40 | 32 40 26 33 33 30 30 Greatest Overweight (x) 12 | . 1 1 12 1 1 6 Average Overweight (x) 2 | . . 1 1 1 1 5 Largest Inventory Capacity 25 | 8 15 15 15 15 15 25 Average Capacity 18 | 7 12 15 15 15 15 24 Most Carried 25 | 7 15 15 15 15 15 25 Average Carried 15 | 5 11 14 14 14 14 18 Final Capacity 15 | 8 15 15 15 15 15 5 Final Carried 15 | 7 15 14 14 14 15 5 Class Distribution -------------------- 60% | Commander-Mutant 26% | Mutant 13% | Scavenger-Mutant Dominant Class ---------------- Mutant | -10/Materials Mutant | -10/Mines Scavenger-Mutant | -9/Materials Mutant | -9/Storage Commander-Mutant | -9/Recycling Commander-Mutant | -9/Scraptown Resources | -11 -10 -10 -9 -9 -9 -9 ----------- Run | Yrd Mat Min Mat Sto Rec Scr Matter Collected 1987 | 300 475 182 710 150 62 108 Remotely . | . . . . . . . Salvage Created 4383 | 110 594 223 1551 818 747 340 Parts 231 | 5 40 23 92 33 27 11 Haulers Intercepted 10 | . 2 . 3 5 . . Recyclers Shooed 6 | 2 1 . 1 2 . . Parts Field Recycled . | . . . . . . . Retrieved Matter . | . . . . . . . Parts Self-Destructed . | . . . . . . . Prevented . | . . . . . . . Kills | -11 -10 -10 -9 -9 -9 -9 ------- Run | Yrd Mat Min Mat Sto Rec Scr Combat Hostiles Destroyed 63 | . 12 9 29 8 4 1 Melee 3 | . . . 1 2 . . Guns 40 | . 12 9 19 . . . Cannons 15 | . . . 5 5 4 1 AOE 3 | . . . 3 . . . Classes Destroyed 11 | 2 6 . 1 . 1 1 Worker 6 | . 3 . 2 1 . . Builder 9 | . 2 . 6 . 1 . Tunneler 1 | 1 . . . . . . Hauler 10 | . 2 . 3 5 . . Recycler 11 | 1 1 . 3 3 3 . Watcher 6 | . 2 . 4 . . . Swarmer 23 | . 8 6 9 . . . Grunt 26 | . 4 3 12 6 1 . Protector 1 | . . . . . 1 . Sentry 12 | . . . 8 2 2 . Explorer 1 | . . . . . . 1 Best Kill Streak 11 | 1 4 3 11 4 4 1 Combat Bots Only 5 | . 3 3 5 3 2 1 Max Kills in Single Turn 3 | 1 2 2 3 1 1 1 Gunslinging 1 | . 1 1 . . . . Exploded 2 | . . . 2 . . . Melee 1 | . . . 1 1 . . Uniques/NPCs Destroyed . | . . . . . . . Combat | -11 -10 -10 -9 -9 -9 -9 -------- Run | Yrd Mat Min Mat Sto Rec Scr Hostile Shots Fired 349 | . 63 38 111 55 9 73 Missed 98 | . 20 8 30 16 5 19 Hits 251 | . 43 30 81 39 4 54 Projectile 251 | . 43 30 81 39 4 54 Critical Strikes 12 | . . 2 1 1 . 8 Damage Taken 3075 | . 455 316 945 481 58 820 Core 636 | . 138 90 119 49 14 226 Absorbed by Shields 77 | . . . . . 4 73 Core Remaining (%) 54 | 100 . 8 . . . . Volleys Fired 248 | 10 65 25 93 39 14 2 Largest 2 | 2 2 2 2 2 2 2 Hottest 120 | 70 100 100 120 120 120 85 Shots Fired 469 | 20 117 42 180 78 28 4 Gun 302 | 20 105 34 133 . 8 2 Cannon 141 | . . . 41 78 20 2 Launcher 6 | . . . 6 . . . Special 20 | . 12 8 . . . . Kinetic 113 | 10 34 17 42 . 8 2 Thermal 350 | 10 83 25 132 78 20 2 Explosive 6 | . . . 6 . . . Electromagnetic . | . . . . . . . Robot Hit Streak 14 | 4 8 5 14 4 7 4 Robot Miss Streak 4 | 3 4 2 4 2 1 2 Penetration Max . | . . . . . . . Secondary Targets 7 | . 3 2 2 . . . Max Gunslinging Chain 1 | . 1 1 1 . . . Shots Hit Robots 308 | 12 59 23 114 40 33 27 Core Hits 140 | 3 27 13 58 13 11 15 Critical Kills 6 | . . . . 5 1 . Critical Parts Destroyed 1 | . . . 1 . . . Critical Strikes 24 | . 7 2 8 5 2 . Burn 16 | . 7 2 7 . . . Meltdown 4 | . . . . 3 1 . Destroy 1 | . . . 1 . . . Smash 2 | . . . . 2 . . Sever 1 | . . . . . 1 . Melee Attacks 73 | . . . 10 15 17 31 Thermal 2 | . . . . . . 2 Impact 19 | . . . 1 15 . 3 Slashing 52 | . . . 9 . 17 26 Piercing . | . . . . . . . Sneak Attacks 2 | . . . . 1 1 . Combat Hostiles . | . . . . . . . Follow-up Attacks . | . . . . . . . Damage Inflicted 6271 | 156 826 300 2417 1018 1139 415 Guns 2607 | 156 778 300 1311 . 62 . Cannons 1653 | . . . 517 758 355 23 Explosions 561 | . 43 . 518 . . . Melee 1438 | . . . 71 259 716 392 Ramming 12 | . 5 . . 1 6 . Kinetic 917 | 82 252 143 378 . 62 . Thermal 3630 | 74 569 157 1450 758 355 267 Explosive 518 | . . . 518 . . . Electromagnetic . | . . . . . . . Impact 259 | . . . . 259 . . Slashing 935 | . . . 71 . 716 148 Piercing . | . . . . . . . Highest Corruption 3 | . . . . . . 3 Average Corruption 1 | . . . . . . 1 Corruption Purged . | . . . . . . . Corruption Blocked . | . . . . . . . Overload Shots . | . . . . . . . Overflow Damage 175 | . 55 . 33 15 72 . Projectiles 15 | . . . . 1 14 . Explosions 88 | . 55 . 33 . . . Melee 72 | . . . . 14 58 . Knockbacks 2 | . . . 1 1 . . Impact 1 | . . . . 1 . . Kinetic 1 | . . . 1 . . . Secondary . | . . . . . . . Self-Inflicted Damage 90 | . 74 . 16 . . . Shots 2 | . 1 . 1 . . . Rammed 1 | . 1 . . . . . Targets Rammed 4 | . 1 . . 1 2 . Kicked 3 | . . . . 1 2 . Crushed . | . . . . . . . Highest Temperature 445 | 72 195 108 445 351 189 215 Average Temperature 63 | 32 39 31 70 87 83 107 Received Heat Transfer 991 | . 72 129 267 204 9 310 Effects 4 | . . . 2 2 . . Shutdowns 1 | . . . 1 . . . Interference 2 | . . . . 2 . . Short Circuit 1 | . . . 1 . . . Siege Activations . | . . . . . . . Martial Activations . | . . . . . . . Shielding Activations . | . . . . . . . Robots Disrupted . | . . . . . . . Combat Hostiles . | . . . . . . . Robots Corrupted 1 | . . . . 1 . . Combat Hostiles . | . . . . . . . Parts Fried 2 | . . . . 2 . . Impact Corruptions 1 | . . . . 1 . . Robots Melted 7 | . 1 . 1 3 1 1 Combat Hostiles 2 | . . . 1 1 . . Parts Melted 27 | . 7 1 11 3 2 3 Heat Transferred 8884 | 222 2122 592 3922 1184 565 277 Parts Sabotaged . | . . . . . . . Parts Stolen . | . . . . . . . Parts Stripped . | . . . . . . . Power Chain Reactions . | . . . . . . . Alert | -11 -10 -10 -9 -9 -9 -9 ------- Run | Yrd Mat Min Mat Sto Rec Scr Maximum Alert Level 2 | . . . 2 2 . . Low Security (%) 78 | 100 100 100 71 33 100 . Level 1 8 | . . . 13 23 . . Level 2 12 | . . . 14 43 . . Level 3 . | . . . . . . . Level 4 . | . . . . . . . Level 5 . | . . . . . . . High Security . | . . . . . . . Max Security . | . . . . . . . Peak Influence 504 | 5 140 114 504 470 162 . Initial 162 | . . 24 37 74 162 . Average 125 | . 51 59 159 312 24 . Influence Increases 3248 | 10 519 243 975 1139 362 . Destroy 0b10 Robot/C 1700 | . 240 180 580 580 120 . Destroy 0b10 Robot/NC 260 | 10 50 . 90 55 55 . Destroy Leader 456 | . 48 40 154 214 . . Allied During Kill 212 | . . . . 182 30 . Successful Hack 92 | . 41 . 8 19 24 . Select Force Hacks 150 | . 30 . . . 120 . Disable Machine 120 | . 75 . . 45 . . Destroy Structure 123 | . 35 8 53 14 13 . Partial Spotted 15 | . . . . 15 . . Lose Combat Pursuer 120 | . . 15 90 15 . . Influence Decreases 3248 | 10 455 210 896 898 779 . Entered New Map 457 | . . 40 60 102 255 . Time Decay 2151 | 10 445 160 506 586 444 . Lost Part 60 | . 10 10 30 10 . . Lost Ally 234 | . . . . 200 34 . Purge Threat 346 | . . . 300 . 46 . Squads Dispatched 16 | . 5 . 3 8 . . Investigation 6 | . 4 . . 2 . . Extermination . | . . . . . . . Reinforcement 6 | . 1 . 3 2 . . Assault . | . . . . . . . Garrison 4 | . . . . 4 . . Intercept . | . . . . . . . Searches Triggered . | . . . . . . . Construction Impeded 1 | . . . 1 . . . Haulers Reinforced . | . . . . . . . Active Scanning Responses . | . . . . . . . Cargo Convoy Interrupts . | . . . . . . . Stealth | -11 -10 -10 -9 -9 -9 -9 --------- Run | Yrd Mat Min Mat Sto Rec Scr Distress Signals 8 | . 1 . 4 3 . . Communications Jammed . | . . . . . . . Distress Signals . | . . . . . . . Times Spotted 120 | . 21 10 40 27 7 15 Peak Tracking Total 6 | . 6 3 4 3 2 6 Tactical Retreats 8 | . . 1 6 1 . . Traps | -11 -10 -10 -9 -9 -9 -9 ------- Run | Yrd Mat Min Mat Sto Rec Scr Traps Triggered 3 | . 2 . 1 . . . Indirectly . | . . . . . . . Trap Hack Attempts . | . . . . . . . Triggered . | . . . . . . . Disarmed 9 | . . . 9 . . . Reprogrammed . | . . . . . . . Reused . | . . . . . . . Traps Extracted . | . . . . . . . Installed . | . . . . . . . Triggered . | . . . . . . . Most Traps Carried 2 | . . . . . . 2 Machines | -11 -10 -10 -9 -9 -9 -9 ---------- Run | Yrd Mat Min Mat Sto Rec Scr Machines Disabled 15 | . 5 . . 3 . 7 Max in Single Turn 4 | . 4 . . 1 . 1 Machines Repaired . | . . . . . . . Machines Dismantled . | . . . . . . . Machines Sabotaged . | . . . . . . . Overloaded Fab Kills . | . . . . . . . Hacking | -11 -10 -10 -9 -9 -9 -9 --------- Run | Yrd Mat Min Mat Sto Rec Scr Machines Accessed 45 | . 7 . 10 9 11 8 Terminals 28 | . 6 . 9 8 5 . Fabricators . | . . . . . . . Repair Stations . | . . . . . . . Recycling Units 8 | . 1 . 1 1 5 . Scanalyzers . | . . . . . . . Garrison Access . | . . . . . . . Total Hacks 167 | . 22 . 29 22 48 46 Successful 119 | . 12 . 15 9 37 46 Failed 48 | . 10 . 14 13 11 . Catastrophic 7 | . 2 . 3 2 . . Database Lockouts . | . . . . . . . Manual 67 | . 17 . 17 13 20 . Terminals 84 | . 20 . 28 21 15 . Fabricators . | . . . . . . . Repair Stations . | . . . . . . . Recycling Units 18 | . 2 . 1 1 14 . Scanalyzers . | . . . . . . . Garrison Access . | . . . . . . . Terminal Hacks 93 | . 7 . 11 5 24 46 Record 66 | . 2 . . . 19 45 Robot Analysis 2 | . 2 . . . . . Open Door 3 | . . . . 3 . . Branch Access Points 1 | . . . 1 . . . Terminal Index 3 | . 1 . 1 . 1 . Unreport Threat 4 | . . . 2 . 2 . Locate Traps 5 | . 1 . 3 1 . . Disarm Traps 2 | . . . 2 . . . Registered Components 1 | . . . 1 . . . Zone Layout 5 | . 1 . 1 1 2 . Proto ID Catalog 1 | . . . . . . 1 Fabricator Hacks . | . . . . . . . Repair Station Hacks . | . . . . . . . Recycling Unit Hacks 5 | . . . . 1 4 . Retrieve Components 5 | . . . . 1 4 . Scanalyzer . | . . . . . . . Garrison Access Hacks . | . . . . . . . Unauthorized Hacks 19 | . 5 . 3 3 8 . Terminals 14 | . 4 . 3 3 4 . Botnet 14 | . 4 . 3 3 4 . Fabricators . | . . . . . . . Repair Stations . | . . . . . . . Recycling Units 5 | . 1 . . . 4 . Tunnel 5 | . 1 . . . 4 . Scanalyzers . | . . . . . . . Garrison Access . | . . . . . . . Data Cores Recovered . | . . . . . . . Used . | . . . . . . . Hacking Detections 26 | . 5 . 8 8 5 . Full Trace Events 2 | . 1 . . 1 . . Feedback Events . | . . . . . . . Feedback Blocked . | . . . . . . . Robot Schematics Acquired . | . . . . . . . Robots Built . | . . . . . . . Authchips . | . . . . . . . Time . | . . . . . . . Total Robot Build Rating . | . . . . . . . Part Schematics Acquired . | . . . . . . . Parts Built . | . . . . . . . Authchips . | . . . . . . . Time . | . . . . . . . Total Part Build Rating . | . . . . . . . Parts Repaired . | . . . . . . . Time . | . . . . . . . Parts Recycled . | . . . . . . . Recycled Matter . | . . . . . . . Retrieved Matter . | . . . . . . . Retrieved Components 17 | . . . . 5 12 . Parts Scanalyzed . | . . . . . . . Part Schematics Acquired . | . . . . . . . Parts Damaged . | . . . . . . . Bothacking | -11 -10 -10 -9 -9 -9 -9 ------------ Run | Yrd Mat Min Mat Sto Rec Scr Used RIF Installer . | . . . . . . . Robots Hacked . | . . . . . . . Non-combat . | . . . . . . . Combat . | . . . . . . . Robot Hacks Applied . | . . . . . . . Relay Couplers Released . | . . . . . . . Fabnet Peak Effective % . | . . . . . . . Robots Rewired 27 | . . . . . 27 . Allies Hacked . | . . . . . . . Hacks Repelled . | . . . . . . . Allies | -11 -10 -10 -9 -9 -9 -9 -------- Run | Yrd Mat Min Mat Sto Rec Scr Total Allies 37 | . . . . 10 27 . Largest Group 21 | . . . . 10 21 20 Highest-Rated Group 336 | . . . . 88 336 315 Highest-Rated Ally 34 | . . . . 16 34 34 Total Orders 26 | . . . . 1 20 5 STAY 1 | . . . . . . 1 ROAM 5 | . . . . . 5 . FOLLOW 9 | . . . . . 8 1 EXPLORE 7 | . . . . 1 4 2 RETURN 4 | . . . . . 3 1 Ally Attacks 234 | . . . . 169 28 37 Total Damage 2767 | . . . . 1572 346 849 Kills 35 | . . . . 23 4 8 Allies Corrupted . | . . . . . . . Allies Melted 1 | . . . . . . 1 Intel | -11 -10 -10 -9 -9 -9 -9 ------- Run | Yrd Mat Min Mat Sto Rec Scr Active Infowar (turns) 7771 | 34 1517 334 1019 . . 4867 IFF 4867 | . . . . . . 4867 Terrain 161 | 34 45 . 82 . . . Seismic 2777 | . 1472 334 971 . . . Robot Analysis Total 2 | . 2 . . . . . Derelict Logs Recovered . | . . . . . . . Drone Launches 5 | . . . . 1 1 3 Drone Recoveries 4 | . . . . 1 1 2 Exploration | -11 -10 -10 -9 -9 -9 -9 ------------- Run | Yrd Mat Min Mat Sto Rec Scr Turns Passed 13846 | 122 1518 334 2215 1838 2657 5162 Spaces Moved 7207 | 74 1253 202 1166 830 1037 2645 Core 2 | 1 . . 1 . . . Treads 167 | . 1 . 166 . . . Legs 2059 | . . . 47 830 1037 145 Wheels 4979 | 73 1252 202 952 . . 2500 Hover . | . . . . . . . Flight . | . . . . . . . Fastest Speed 50 | 50 80 95 95 190 190 190 Average Speed 159 | 99 91 95 127 190 190 190 Slowest Speed 650 | 100 160 105 650 190 190 190 Overloaded Moves . | . . . . . . . Propulsion Burnouts . | . . . . . . . Robots Hopped . | . . . . . . . Potential Cave-ins . | . . . . . . . Cave-ins Triggered . | . . . . . . . Exploration Rate (%) 71 | 5 98 32 74 96 99 94 Regions Visited 6 Branch Regions 4 Pre-discovered Areas 5 | . 1 . . . 4 . Known Exits Taken 1 | . . . 1 . . . Unknown Exits Taken 5 | 1 1 1 . 1 1 . Scrap Searched 10 | . . . . . . 10 Spaces Dug 58 | . 10 6 36 5 1 . Terrain Destroyed 128 | . 38 8 71 10 1 . Melee 7 | . . . 3 3 1 . Projectile 30 | . 11 8 4 7 . . AOE 91 | . 27 . 64 . . . Terrain Rammed . | . . . . . . . Walls Destroyed . | . . . . . . . Machines Disabled . | . . . . . . . Actions | -11 -10 -10 -9 -9 -9 -9 --------- Run | Yrd Mat Min Mat Sto Rec Scr Total 8991 | 98 1476 279 1713 988 1669 2768 Wait 932 | 1 107 35 329 84 327 49 Move 7201 | 73 1252 201 1165 829 1036 2645 Hop . | . . . . . . . Pick Up 71 | 7 14 2 25 3 1 19 Fast Attach 17 | 7 1 . 7 1 . 1 Attach 12 | . 1 2 7 1 . 1 Detach 1 | . 1 . . . . . Swap 90 | . 24 12 33 8 3 10 Drop 73 | . 10 2 44 7 . 10 Fire 248 | 10 65 25 93 39 14 2 Melee 73 | . . . 10 15 17 31 Ram 1 | . 1 . . . . . Kick 3 | . . . . 1 2 . Crush . | . . . . . . . Escape Stasis . | . . . . . . . Rewire 269 | . . . . . 269 . Trap . | . . . . . . . Miscellaneous . | . . . . . . . Route ------- -11/Scrapyard -10/Materials (discovered 5 exits: *Mat x3 / [*Min] / [*Sub]) -10/Mines (discovered 2 exits: *Mat x2) -9/Materials (discovered 5 exits: [*Mat x2] / *Min x2 / *Sto) -9/Storage (discovered 2 exits: [*Mat] / *Rec) -9/Recycling (discovered 2 exits: [*Fac] / *Scr) -9/Scraptown (discovered 2 exits: [*Fac x2]) History --------- Turn | Location | Event 14 | -11/Scrapyard | Discovered new exit (range 15) 123 | -11/Scrapyard | Entered Materials 213 | -10/Materials | Discovered new exit (range 4) 352 | -10/Materials | Build established: Mutant 363 | -10/Materials | Discovered new exit (range 15) 511 | -10/Materials | Discovered new exit (range 15) 593 | -10/Materials | Discovered new exit (range 10) 772 | -10/Materials | Discovered new exit (range 16) 1142 | -10/Materials | Core integrity fell below 50% 1641 | -10/Materials | Entered Mines 1700 | -10/Mines | Met a Derelict bent on vengeance 1846 | -10/Mines | Discovered new exit (range 8) 1888 | -10/Mines | Discovered new exit (range 16) 1952 | -10/Mines | Core integrity fell below 20% 1975 | -10/Mines | Entered Materials 1975 | -9/Materials | Evolved 2 slots: Propulsion x1, Utility x1 2540 | -9/Materials | Build established: Scavenger-Mutant 3363 | -9/Materials | Discovered new exit (range 13) 3693 | -9/Materials | Discovered new exit (range 13) 3959 | -9/Materials | Identified exit to Mines 3959 | -9/Materials | Identified exit to Storage 4190 | -9/Materials | Entered Storage 4208 | -9/Storage | Assisted by bots powering up and referring to "LRC-V3" 4495 | -9/Storage | Build established: Commander-Mutant 4670 | -9/Storage | Used back door to open Recycling access 4670 | -9/Storage | Discovered new exit (range 5) 4692 | -9/Storage | Lost 5 allies 4797 | -9/Storage | Discovered new exit (range 15) 4936 | -9/Storage | Garrison activated, responded to threat 5301 | -9/Storage | Build established: Mutant 5378 | -9/Storage | Garrison activated, responded to threat 6028 | -9/Storage | Entered Recycling 6579 | -9/Recycling | Discovered new exit (range 10) 6593 | -9/Recycling | Build established: Commander-Mutant 7393 | -9/Recycling | Scanned before Scraplab entrance 7420 | -9/Recycling | Entered Scraplab 7450 | -9/Recycling | Discovered new exit (range 3) 8685 | -9/Recycling | Entered Scraptown 8685 | -9/Scraptown | Accompanied by 20 allies 8986 | -9/Scraptown | Heard Great Nut preacher, LISTEN AND RECITE! 9220 | -9/Scraptown | Discovered new exit (range 3) 9421 | -9/Scraptown | Visited Comm Corps 9856 | -9/Scraptown | Visited Fellowship of the Rings 9924 | -9/Scraptown | Visited Red Mages 10006 | -9/Scraptown | Visited Awakened 10099 | -9/Scraptown | Visited Cyclists 10171 | -9/Scraptown | Visited TADAMA 10657 | -9/Scraptown | Visited Bundlers 10850 | -9/Scraptown | Visited UFD Registry 10854 | -9/Scraptown | Registered with UFD as "Slugcoil" 10919 | -9/Scraptown | Entered Cyclist Reading Room 11377 | -9/Scraptown | Visited Science Guys 11482 | -9/Scraptown | Visited Curators Association 11547 | -9/Scraptown | Visited Botcube Research 11560 | -9/Scraptown | Found Botcube 12055 | -9/Scraptown | Visited LU-1G1's Boring Crew 12183 | -9/Scraptown | Visited Supply Room 12219 | -9/Scraptown | Visited Scrap Suit Storage 12287 | -9/Scraptown | Visited Junk Repository 12513 | -9/Scraptown | Visited Abandonware Association 12530 | -9/Scraptown | Learned abandonware demo "OVRCLOCK.EXE" 12595 | -9/Scraptown | Learned abandonware demo "REPAIR.EXE" 12595 | -9/Scraptown | Learned abandonware demo "REBOOT5.EXE" 12644 | -9/Scraptown | Visited DA-N13 Charitable Foundation 12663 | -9/Scraptown | Found DCF Scrap (30 items) 12751 | -9/Scraptown | Visited Cartography Club 13461 | -9/Scraptown | Met Optimus 13461 | -9/Scraptown | Accepted into 0bPrime 13561 | -9/Scraptown | Civil war broke out across Scraptown 13605 | -9/Scraptown | Lost 6 allies 13647 | -9/Scraptown | Found PL-3XN's Ring of Power 13679 | -9/Scraptown | Lost 10 allies 13716 | -9/Scraptown | Discovered new exit (range 56) 13753 | -9/Scraptown | Found Thermal Lance 13814 | -9/Scraptown | Attacked by Scraptown defenders 13833 | -9/Scraptown | Core integrity fell below 50% 13845 | -9/Scraptown | Core integrity fell below 20% 13847 | -9/Scraptown | Destroyed by WT-31J(g) with Salvaging Laser Last Messages --------------- 13838_ Sneak attack on Triborg. 13838_ Triborg critical meltdown. 13838_ Siege Articulator melted. 13838_ Hcp. Matter Pod melted. 13838_ Imp. Targeting Computer melted. 13839_ Slug penetrates Wall. 13839_ Penetrated by Slug. 13839_ BX-PEM(p) suffers critical hit (Destroy). 13840_ Critical hit (Burn: +50). 13841_ Imp. Ion Engine destroyed. 13842_ IFF Parser destroyed. 13842_ Acquired Mak. Medium Armor Plating. 13842_ Critical hit (Burn: +50). 13843_ Aluminum Leg destroyed. 13844_ Ion Cannon destroyed. 13844_ Penetrated by Slug. 13844_ Com. Wheel destroyed. 13845_ CW-YT7(E) misfires. 13845_ Dropped Huge Storage Unit. 13846_ Critical hit (Burn: +50). Map ----- +----------------------------------------------------+ | #??# ##" "#??###### #######?????# | | #??# ##" X#??# #?????# | | #??# ##" "#??# #?????# | | #??# ## #??########### ##?????### | | ########## ########### ####???????#####%########## | | #???????#"" "!= "* " "" | | ! #???????#" =%%!%= *[ | | #???????#" !=%= =%! | | =! !=%!#???????# !! = | | *%=![!%=!!#???????#" = | | ################%[*!! ==%[#???#####" =%! | | #???????????????#%!%*! ==!#???#"""" !"[""""" " | | #???????????????#!%!== #???#"""" """"""""" | | #???????????????#!!/! #???#"""" ""###### | | #?????????????? ;%=j #???#"""" *""# * | | #??????????????#!!/ #???#"""" */%""# | | #???###########?; ###?#"""" !%=""# "" | | #???#"""""""""#?# % ""#"#"""" =%==""# "" | | #???#"%=! "#?# """"#"""" !! ""# " | | #???#"!= "#?# [ % "#######" "" " | | #???#"[!""" "#?#!%! =###?????#" " " | | #???#"% """ "#?# [ ! #########" ""# " | | #???# ! "" "#?# =%! =%* !% ""# "" | | #???#"% %![ #?# =%[[] ![ ""# "" | | #???#" *==!"### [=!]!! ""# | | ##??# =[!*%!=##; !]!E@3= !! * ""# | | "######=###%%=;;!! !%!*!!&=*=%= % ""###### | | !!%*%=[=%=!!= %! !!*=]!%%*%![*= %/""""""""" | | *=!=%!%! = ! [|%=%[===**g[!= & """"""" | | [*%!/!![% =%! p=[!%**%=!!%!*% !%/ | | %[![%%== [! =%*=!= !== *%![==!%[j ! = | | !!%*!!= =!/ !%[ *%[!%!!%!=[!%= E | | !![!& [%! !%=!=!!!== #""""# ! | | !! = * %%!=* #????#" | | =%= *!%! #????#""" != """" | | #### "#[########;##[;## [ ####????#######%######## | | "#??# =%=*## #????????# ![= "#" | | ""#??# !!% ## #????????#" ##" | | ""#??# ##*= #????????# " "" ""##] | | =*=""#??# #!%! #????????# " "" ""##" | | " !%! "#??# ##= #????????# ""#" | | """![""#??# ## #????????#""/ """"##" | | """ "#??# ! ## #????????#"" " """##& | | "#??# =%= ## #????????#"" " "##" | | """"" "#??# * ## #????????#"""" """#" | | #####"""#??############ #????????#""" X """""### | | !!!!#"""#?????????????# #????????#"""""""""""#?? | | !! !#"""#??????######## #????????#############?? | | #########??????"""""""" #????################### | | ??????????????""" """"" #????# ##"""##"" | +----------------------------------------------------+ Best States ------------- Heat Dissipation 50 Energy Generation 12 Energy Capacity 265 Matter Stores 300 Matter Capacity 300 Sight Range 16 Terrain Scan Range 16 Terrain Scan Density 10 Armor Coverage 375 Evasion (%) 44 Recoil Reduction 2 Trap Extractor Capacity 4 Item Schematics ----------------- None Robot Schematics ------------------ None Fabricated ------------ Nothing Repaired ---------- Nothing Alien Tech Used ----------------- None Achievements -------------- None Challenges ------------ None Game ------ Seed NetworkedTransportScythe Manual? 0 Play Time 01:40:56 Cumulative 1345.3 hours Start 2025.05.09 @ 01:40:50 End 2025.05.09 @ 03:58:57 Sessions 1 Manual Loads 0 Difficulty Rogue Special Mode None Game No. 488 Rogue 488 Adventurer 0 Explorer 0 Win Type - Total 32 Types 16/2/8/0/0/0/6/0/0/0 Lore% 82 Gallery% 82 Achievement% 85 Wizard Run 0 Options --------- Layout 1 ASCII 0 Keyboard 0 Movement Vi Keybinds 0 Fullscreen 0 Font 14/CherryShadow Map View 64x42 Zoom Use 0% Tactical HUD 1 Map Filters NONE Filters NONE Steam 1 RUN: eb170472-bebe-44b3-8674-8f6d3a8cbc0a